fUST/lending_fUST_20240925
["ID","MTS","AMOUNT","RATE_DAILY","PERIOD"]
[339104351,1727248243546,-513.84,0.00016438,2]
[339104352,1727248243556,-503.28259536,0.00016438,2]
[339104353,1727248243566,-500.0,0.00016438,2]
[339104354,1727248243575,-500.0,0.00016438,2]
[339104355,1727248243585,-339.50185157,0.00016438,2]
[339104356,1727248243595,-946.2,0.00016438,2]
[339104357,1727248243604,-502.19690123,0.00016438,2]
[339104358,1727248243614,-500.0,0.00016438,2]
[339104359,1727248243624,-500.0,0.00016438,2]
[339104360,1727248243633,-500.0,0.00016438,2]
[339104361,1727248243642,-500.0,0.00016438,2]
[339104362,1727248243652,-500.0,0.00016438,2]
[339104363,1727248243662,-500.0,0.00016438,2]
[339104364,1727248243672,-500.0,0.00016438,2]
[339104365,1727248243682,-500.0,0.00016438,2]
[339104366,1727248243693,-500.0,0.00016438,2]
[339104367,1727248243705,-500.0,0.00016438,2]
[339104368,1727248243714,-500.0,0.00016438,2]
[339104369,1727248243724,-500.0,0.00016438,2]
[339104370,1727248243736,-500.0,0.00016438,2]
[339104371,1727248243745,-511.73909019,0.00016438,2]
[339104372,1727248243755,-506.42866638,0.00016438,2]
[339104373,1727248243766,-500.0,0.00016438,2]
[339104374,1727248243776,-500.0,0.00016438,2]
[339104375,1727248243785,-500.0,0.00016438,2]
[339104376,1727248243795,-500.0,0.00016438,2]
[339104377,1727248243805,-707.71,0.00016438,2]
[339104378,1727248243814,-500.0,0.00016438,2]
[339104379,1727248243824,-500.0,0.00016438,2]
[339104380,1727248243834,-500.0,0.00016438,2]
[339104381,1727248243843,-500.0,0.00016438,2]
[339104382,1727248243853,-500.0,0.00016438,2]
[339104383,1727248243862,-500.0,0.00016438,2]
[339104384,1727248243872,-500.0,0.00016438,2]
[339104385,1727248243882,-500.0,0.00016438,2]
[339104386,1727248243891,-500.0,0.00016438,2]
[339104387,1727248243902,-792.41,0.00016438,2]
[339104388,1727248243911,-1054.25,0.00016438,2]
[339104389,1727248243920,-254.67832143,0.00016438,2]
[339104390,1727248243930,-951.96,0.00016438,2]
[339104391,1727248243939,-500.0,0.00016438,2]
[339104392,1727248243949,-984.15,0.00016438,2]
[339104393,1727248243958,-500.0,0.00016438,2]
[339104394,1727248243968,-500.0,0.00016438,2]
[339104395,1727248243977,-797.44,0.00016438,2]
[339104396,1727248243986,-590.02,0.00016438,2]
[339104397,1727248243996,-1501.06,0.00016438,2]
[339104398,1727248244005,-500.0,0.00016438,2]
[339104399,1727248244015,-500.0,0.00016438,2]
[339104400,1727248244025,-500.0,0.00016438,2]
[339104401,1727248244037,-500.0,0.00016438,2]
[339104402,1727248244047,-500.0,0.00016438,2]
[339104403,1727248244059,-500.0,0.00016438,2]
[339104404,1727248244068,-1590.26,0.00016438,2]
[339104405,1727248244077,-500.0,0.00016438,2]
[339104406,1727248244087,-500.0,0.00016438,2]
[339104407,1727248244096,-1394.19,0.00016438,2]
[339104408,1727248244104,-1394.19,0.00016438,2]
[339104409,1727248244115,-500.0,0.00016438,2]
[339104410,1727248244125,-1394.19,0.00016438,2]
[339104411,1727248244135,-1394.19,0.00016438,2]
[339104412,1727248244144,-500.0,0.00016438,2]
[339104413,1727248244154,-1394.19,0.00016438,2]
[339104414,1727248244166,-1394.19,0.00016438,2]
[339104415,1727248244176,-1394.19,0.00016438,2]
[339104416,1727248244185,-1394.19,0.00016438,2]
[339104417,1727248244194,-1394.19,0.00016438,2]
[339104418,1727248244211,-1394.19,0.00016438,2]
[339104419,1727248244220,-535.56,0.00016438,2]
[339104420,1727248244231,-1394.19,0.00016438,2]
[339104421,1727248244241,-500.0,0.00016438,2]
[339104422,1727248244252,-1394.19,0.00016438,2]
[339104423,1727248244263,-1394.19,0.00016438,2]
[339104424,1727248244272,-1394.19,0.00016438,2]
[339104425,1727248244282,-1394.19,0.00016438,2]
[339104426,1727248244291,-1394.19,0.00016438,2]
[339104427,1727248244300,-1394.19,0.00016438,2]
[339104428,1727248244310,-1394.19,0.00016438,2]
[339104429,1727248244319,-1394.19,0.00016438,2]
[339104430,1727248244331,-1394.19,0.00016438,2]
[339104431,1727248244340,-1394.19,0.00016438,2]
[339104432,1727248244351,-1394.19,0.00016438,2]
[339104433,1727248244362,-1394.19,0.00016438,2]
[339104434,1727248244372,-1394.39462771,0.00016438,2]
[339104435,1727248244381,-500.0,0.00016438,2]
[339104436,1727248244391,-852.87,0.00016438,2]
[339104437,1727248244400,-500.0,0.00016438,2]
[339104438,1727248244410,-500.0,0.00016438,2]
[339104439,1727248244419,-257.85944987,0.00016438,2]
[339104440,1727248244428,-500.0,0.00016438,2]
[339104441,1727248244438,-500.0,0.00016438,2]
[339104442,1727248244449,-500.0,0.00016438,2]
[339104443,1727248244460,-500.0,0.00016438,2]
[339104444,1727248244470,-500.0,0.00016438,2]
[339104445,1727248244479,-500.0,0.00016438,2]
[339104446,1727248244489,-500.0,0.00016438,2]
[339104447,1727248244498,-500.0,0.00016438,2]
[339104448,1727248244508,-500.0,0.00016438,2]
[339104449,1727248244518,-500.0,0.00016438,2]
[339104450,1727248244527,-1461.91,0.00016438,2]
[339104451,1727248244536,-660.09,0.00016438,2]
[339104452,1727248244545,-757.06,0.00016438,2]
[339104453,1727248244556,-500.0,0.00016438,2]
[339104454,1727248244565,-500.0,0.00016438,2]
[339104455,1727248244575,-500.0,0.00016438,2]
[339104456,1727248244584,-500.0,0.00016438,2]
[339104457,1727248244594,-671.83,0.00016438,2]
[339104458,1727248244603,-888.81,0.00016438,2]
[339104459,1727248244612,-655.16,0.00016438,2]
[339104460,1727248244622,-506.96659603,0.00016438,2]
[339104461,1727248244631,-506.43727856,0.00016438,2]
[339104462,1727248244641,-249.13339426,0.00016438,2]
[339104463,1727248244651,-151.0,0.00016438,2]
[339104464,1727248244660,-500.0,0.00016438,2]
[339104465,1727248244670,-151.0,0.00016438,2]
[339104466,1727248244679,-500.0,0.00016438,2]
[339104467,1727248244688,-513.5,0.00016438,2]
[339104468,1727248244702,-500.0,0.00016438,2]
[339104469,1727248244712,-500.0,0.00016438,2]
[339104470,1727248244721,-500.0,0.00016438,2]
[339104471,1727248244730,-500.0,0.00016438,2]
[339104472,1727248244739,-500.0,0.00016438,2]
[339104473,1727248244749,-500.0,0.00016438,2]
[339104474,1727248244758,-500.0,0.00016438,2]
[339104475,1727248244767,-500.0,0.00016438,2]
[339104476,1727248244776,-940.39,0.00016438,2]
[339104477,1727248244785,-500.0,0.00016438,2]
[339104478,1727248244795,-500.0,0.00016438,2]
[339104479,1727248244804,-516.75044849,0.00016438,2]
[339104480,1727248244814,-151.0,0.00016438,2]
[339104481,1727248244823,-595.4,0.00016438,2]
[339104482,1727248244832,-500.0,0.00016438,2]
[339104483,1727248244842,-941.06,0.00016438,2]
[339104484,1727248244852,-500.0,0.00016438,2]
[339104485,1727248244861,-500.0,0.00016438,2]
[339104486,1727248244870,-500.0,0.00016438,2]
[339104487,1727248244879,-151.0,0.00016438,2]
[339104488,1727248244890,-500.0,0.00016438,2]
[339104489,1727248244901,-1005.12,0.00016438,2]
[339104490,1727248244911,-554.41206618,0.00016438,2]
[339104491,1727248244921,-500.0,0.00016438,2]
[339104492,1727248244930,-500.0,0.00016438,2]
[339104493,1727248244940,-500.0,0.00016438,2]
[339104494,1727248244951,-820.01,0.00016438,2]
[339104495,1727248244961,-500.0,0.00016438,2]
[339104496,1727248244971,-686.02,0.00016438,2]
[339104497,1727248244981,-500.0,0.00016438,2]
[339104498,1727248244990,-843.2,0.00016438,2]
[339104499,1727248245002,-500.0,0.00016438,2]
[339104500,1727248245012,-542.6,0.00016438,2]
[339104501,1727248245021,-657.99,0.00016438,2]
[339104502,1727248245030,-500.0,0.00016438,2]
[339104503,1727248245039,-23.01476352,0.00016438,2]
[339104559,1727248356966,24900.0,0.00013677,2]
[339104562,1727248436164,1000.0,0.00015,10]
[339104563,1727248472028,235.916957,0.00013854,2]
[339104565,1727248882339,-150.0,0.0001462,2]
[339104570,1727249091726,235.9169585,0.00013736,2]
[339104586,1727249310056,235.7028836,0.00013777,2]
[339104697,1727249438639,-299.07589908,0.00014555,2]
[339104754,1727249503102,1486.81,0.00010959,2]
[339104755,1727249513593,1239.01,0.00010959,2]
[339104757,1727249524321,1032.51,0.00010959,2]
[339104758,1727249535064,860.42,0.00010959,2]
[339104759,1727249545788,717.02,0.00010959,2]
[339104760,1727249556322,597.52,0.00010959,2]
[339104761,1727249567037,497.93,0.00010959,2]
[339104762,1727249577553,414.94,0.00010959,2]
[339104763,1727249588007,345.78,0.00010959,2]
[339104764,1727249598497,288.15,0.00010959,2]
[339104765,1727249609429,240.13,0.00010959,2]
[339104766,1727249620134,200.11,0.00010959,2]
[339104769,1727249630614,166.76,0.00010959,2]
[339104770,1727249641114,833.8,0.00010959,2]
[339104771,1727249772434,24900.0,0.00013781,2]
[339104781,1727250308261,275.79,0.00010959,2]
[339104799,1727250316973,24900.0,0.00013621,2]
[339104800,1727250318764,229.82,0.00010959,2]
[339104801,1727250329464,191.52,0.00010959,2]
[339104802,1727250340190,159.6,0.00010959,2]
[339104803,1727250350518,798.03,0.00010959,2]
[339104807,1727250382030,-193.07784012,0.00014241,2]
[339104808,1727250382055,-200.0,0.000143,2]
[339104809,1727250382077,-7146.18197968,0.00014352,2]
[339104810,1727250382100,-300.0,0.00014473,2]
[339104811,1727250382125,-300.0,0.00014473,2]
[339104812,1727250382149,-500.0,0.00014474,2]
[339104813,1727250382174,-500.0,0.00014474,2]
[339104814,1727250382197,-500.0,0.00014474,2]
[339104815,1727250382220,-500.0,0.00014474,2]
[339104816,1727250382243,-266.0,0.00014474,2]
[339104817,1727250382269,-338.82529773,0.00014548,2]
[339104818,1727250382292,-263.45947655,0.00014648,2]
[339104819,1727250382320,-500.0,0.00014648,2]
[339104820,1727250382343,-626.14667121,0.00014648,2]
[339104821,1727250382369,-500.0,0.00014648,2]
[339104822,1727250382394,-626.14667121,0.00014648,2]
[339104823,1727250382421,-500.0,0.00014648,2]
[339104824,1727250382447,-500.0,0.00014648,2]
[339104825,1727250382472,-626.14667121,0.00014648,2]
[339104826,1727250382500,-500.0,0.00014648,2]
[339104827,1727250382524,-626.14667121,0.00014648,2]
[339104828,1727250382551,-500.0,0.00014648,2]
[339104829,1727250382576,-500.0,0.00014648,2]
[339104830,1727250382600,-626.14667121,0.00014648,2]
[339104831,1727250382631,-500.0,0.00014648,2]
[339104832,1727250382655,-626.14667121,0.00014648,2]
[339104833,1727250382681,-500.0,0.00014648,2]
[339104834,1727250382704,-626.14667121,0.00014648,2]
[339104835,1727250382732,-500.0,0.00014648,2]
[339104836,1727250382760,-500.0,0.00014648,2]
[339104837,1727250382783,-626.14667121,0.00014648,2]
[339104838,1727250382808,-500.0,0.00014648,2]
[339104839,1727250382830,-626.14667121,0.00014648,2]
[339104840,1727250382855,-500.0,0.00014648,2]
[339104841,1727250382879,-626.14667121,0.00014648,2]
[339104842,1727250382904,-500.0,0.00014648,2]
[339104843,1727250382929,-500.0,0.00014648,2]
[339104844,1727250383164,-626.14667121,0.00014648,2]
[339104845,1727250383191,-500.0,0.00014648,2]
[339104846,1727250383217,-500.0,0.00014648,2]
[339104847,1727250383241,-626.14667121,0.00014648,2]
[339104848,1727250383284,-500.0,0.00014648,2]
[339104849,1727250383313,-626.14667121,0.00014648,2]
[339104850,1727250383340,-500.0,0.00014648,2]
[339104851,1727250383367,-626.14667121,0.00014648,2]
[339104852,1727250383395,-500.0,0.00014648,2]
[339104853,1727250383423,-500.0,0.00014648,2]
[339104854,1727250383450,-626.14667121,0.00014648,2]
[339104855,1727250383478,-626.14667121,0.00014648,2]
[339104856,1727250383507,-500.0,0.00014648,2]
[339104857,1727250383534,-500.0,0.00014648,2]
[339104858,1727250383559,-626.14667121,0.00014648,2]
[339104859,1727250383587,-500.0,0.00014648,2]
[339104860,1727250383616,-626.14667121,0.00014648,2]
[339104861,1727250383645,-500.0,0.00014648,2]
[339104862,1727250383671,-626.14667121,0.00014648,2]
[339104863,1727250383700,-153.8368396,0.00014648,2]
[339104864,1727250383724,-626.14667121,0.00014648,2]
[339104865,1727250383751,-500.0,0.00014648,2]
[339104866,1727250383775,-626.14667121,0.00014648,2]
[339104867,1727250383800,-626.14667121,0.00014648,2]
[339104868,1727250383826,-626.14667121,0.00014648,2]
[339104869,1727250383851,-626.14667121,0.00014648,2]
[339104870,1727250383876,-626.14667121,0.00014648,2]
[339104871,1727250383900,-626.14667121,0.00014648,2]
[339104872,1727250383924,-626.14667121,0.00014648,2]
[339104873,1727250383948,-626.14667121,0.00014648,2]
[339104874,1727250383980,-626.14667121,0.00014648,2]
[339104875,1727250384007,-626.14667121,0.00014648,2]
[339104876,1727250384032,-626.14667121,0.00014648,2]
[339104877,1727250384057,-626.14667121,0.00014648,2]
[339104878,1727250384083,-626.14667121,0.00014648,2]
[339104879,1727250384108,-626.14667121,0.00014648,2]
[339104880,1727250384135,-626.14667121,0.00014648,2]
[339104881,1727250384162,-626.14667121,0.00014648,2]
[339104882,1727250384189,-626.14667121,0.00014648,2]
[339104883,1727250384216,-626.14667121,0.00014648,2]
[339104884,1727250384243,-626.14667121,0.00014648,2]
[339104885,1727250384275,-500.0,0.00014648,2]
[339104886,1727250384300,-621.03526981,0.00014648,2]
[339104887,1727250384326,-621.03526981,0.00014648,2]
[339104888,1727250384353,-621.03526981,0.00014648,2]
[339104889,1727250384378,-621.03526981,0.00014648,2]
[339104890,1727250384402,-621.03526981,0.00014648,2]
[339104891,1727250384427,-621.03526981,0.00014648,2]
[339104892,1727250384452,-621.03526981,0.00014648,2]
[339104893,1727250384477,-621.03526981,0.00014648,2]
[339104894,1727250384504,-621.03526981,0.00014648,2]
[339104895,1727250384528,-621.03526981,0.00014648,2]
[339104896,1727250384553,-621.03526981,0.00014648,2]
[339104897,1727250384577,-621.03526981,0.00014648,2]
[339104898,1727250384601,-621.03526981,0.00014648,2]
[339104899,1727250384629,-621.03526981,0.00014648,2]
[339104900,1727250384654,-621.03526981,0.00014648,2]
[339104901,1727250384682,-621.03526981,0.00014648,2]
[339104902,1727250384706,-621.03526981,0.00014648,2]
[339104903,1727250384730,-621.03526981,0.00014648,2]
[339104904,1727250384754,-621.03526981,0.00014648,2]
[339104905,1727250384779,-621.03526981,0.00014648,2]
[339104906,1727250384803,-621.03526981,0.00014648,2]
[339104907,1727250384827,-621.03526981,0.00014648,2]
[339104908,1727250384850,-621.03526981,0.00014648,2]
[339104909,1727250384875,-621.03526981,0.00014648,2]
[339104910,1727250384903,-621.03526981,0.00014648,2]
[339104911,1727250384928,-621.03526981,0.00014648,2]
[339104912,1727250384952,-621.03526981,0.00014648,2]
[339104913,1727250384977,-621.03526981,0.00014648,2]
[339104914,1727250385004,-621.03526981,0.00014648,2]
[339104915,1727250385028,-621.03526981,0.00014648,2]
[339104916,1727250385051,-621.03526981,0.00014648,2]
[339104917,1727250385075,-625.61131918,0.00014648,2]
[339104918,1727250385099,-625.61131918,0.00014648,2]
[339104919,1727250385124,-625.61131918,0.00014648,2]
[339104920,1727250385148,-625.61131918,0.00014648,2]
[339104921,1727250385172,-625.61131918,0.00014648,2]
[339104922,1727250385195,-625.61131918,0.00014648,2]
[339104923,1727250385220,-625.61131918,0.00014648,2]
[339104924,1727250385244,-625.61131918,0.00014648,2]
[339104925,1727250385270,-625.61131918,0.00014648,2]
[339104926,1727250385294,-625.61131918,0.00014648,2]
[339104927,1727250385318,-625.61131918,0.00014648,2]
[339104928,1727250385343,-625.61131918,0.00014648,2]
[339104929,1727250385367,-625.61131918,0.00014648,2]
[339104930,1727250385461,-625.61131918,0.00014648,2]
[339104931,1727250385485,-500.0,0.00014648,2]
[339104932,1727250385512,-500.0,0.00014648,2]
[339104933,1727250385534,-500.0,0.00014648,2]
[339104934,1727250385559,-500.0,0.00014648,2]
[339104935,1727250385582,-500.0,0.00014648,2]
[339104936,1727250385612,-500.0,0.00014648,2]
[339104937,1727250385636,-500.0,0.00014648,2]
[339104938,1727250385662,-500.0,0.00014648,2]
[339104939,1727250385689,-500.0,0.00014648,2]
[339104940,1727250385716,-500.0,0.00014648,2]
[339104941,1727250385742,-500.0,0.00014648,2]
[339104942,1727250385779,-500.0,0.00014648,2]
[339104943,1727250385804,-500.0,0.00014648,2]
[339104944,1727250385830,-340.21760067,0.00014648,2]
[339104945,1727250385859,-500.0,0.00014648,2]
[339104946,1727250385883,-500.0,0.00014648,2]
[339104947,1727250385908,-500.0,0.00014648,2]
[339104948,1727250385932,-500.0,0.00014648,2]
[339104949,1727250385963,-500.0,0.00014648,2]
[339104950,1727250385989,-500.0,0.00014648,2]
[339104951,1727250386017,-500.0,0.00014648,2]
[339104952,1727250386044,-500.0,0.00014648,2]
[339104953,1727250386069,-500.0,0.00014648,2]
[339104954,1727250386094,-500.0,0.00014648,2]
[339104955,1727250386118,-500.0,0.00014648,2]
[339104956,1727250386143,-500.0,0.00014648,2]
[339104957,1727250386169,-500.0,0.00014648,2]
[339104958,1727250386194,-500.0,0.00014648,2]
[339104959,1727250386220,-500.0,0.00014648,2]
[339104960,1727250386247,-489.2714894,0.00014648,2]
[339104961,1727250386273,-500.0,0.00014648,2]
[339104962,1727250386299,-500.0,0.00014648,2]
[339104963,1727250386325,-500.0,0.00014648,2]
[339104964,1727250386351,-500.0,0.00014648,2]
[339104965,1727250386377,-500.0,0.00014648,2]
[339104966,1727250386404,-500.0,0.00014648,2]
[339104967,1727250386428,-625.61131917,0.00014648,2]
[339104968,1727250386452,-625.61131917,0.00014648,2]
[339104969,1727250386475,-625.61131917,0.00014648,2]
[339104970,1727250386499,-625.61131917,0.00014648,2]
[339104971,1727250386522,-625.61131917,0.00014648,2]
[339104972,1727250386548,-500.0,0.00014648,2]
[339104973,1727250386573,-599.99999999,0.00014648,2]
[339104974,1727250386599,-500.0,0.00014648,2]
[339104975,1727250386626,-500.0,0.00014648,2]
[339104976,1727250386650,-500.0,0.00014648,2]
[339104977,1727250386675,-500.0,0.00014648,2]
[339104978,1727250386701,-500.0,0.00014648,2]
[339104979,1727250386723,-1000.0,0.00014813,2]
[339104980,1727250386755,-150.0,0.00014972,2]
[339104981,1727250386785,-225.48509293,0.00015,2]
[339104982,1727250386808,-1500.0,0.00015,2]
[339104983,1727250386831,-338.82529773,0.00015218,2]
[339104984,1727250386856,-153.0,0.00015502,2]
[339104985,1727250386879,-153.0,0.000156,2]
[339104986,1727250386903,-153.0,0.00015616,2]
[339104987,1727250386927,-153.0,0.00015616,2]
[339104988,1727250386952,-153.0,0.00015616,2]
[339104989,1727250386976,-153.0,0.00015616,2]
[339104990,1727250387001,-420.0,0.00015848,2]
[339104991,1727250387025,-338.82529773,0.00015888,2]
[339104992,1727250387049,-1000.0,0.00015888,2]
[339104993,1727250387072,-2056.84818534,0.00015898,2]
[339104994,1727250387095,-21668.29397749,0.00015898,2]
[339104995,1727250387118,-420.0,0.0001592,2]
[339104996,1727250387141,-500.0,0.00015973,2]
[339104997,1727250387164,-500.0,0.00015973,2]
[339104998,1727250387187,-200.41179046,0.00015973,2]
[339104999,1727250387209,-333.52428422,0.00015973,2]
[339105000,1727250387233,-500.0,0.00015987,2]
[339105001,1727250387259,-500.0,0.00015987,2]
[339105002,1727250387281,-500.0,0.00015987,2]
[339105003,1727250387305,-217.09128321,0.00015987,2]
[339105004,1727250387328,-274.18375831,0.00015987,2]
[339105005,1727250387351,-225.86584125,0.00015987,2]
[339105006,1727250387375,-286.77049981,0.00015987,2]
[339105007,1727250387399,-500.0,0.00015987,2]
[339105008,1727250387425,-500.0,0.00015987,2]
[339105009,1727250387457,-500.0,0.00015987,2]
[339105010,1727250387482,-500.0,0.00015987,2]
[339105011,1727250387506,-415.39960223,0.00015987,2]
[339105012,1727250387529,-174.31240628,0.00015987,2]
[339105013,1727250387553,-202.0878917,0.00015987,2]
[339105014,1727250387579,-520.58745644,0.00015987,2]
[339105015,1727250387603,-4512.03827066,0.00015988,2]
[339105016,1727250387633,-283935.145825,0.00015988,2]
[339105017,1727250387659,-369774.045966,0.00015988,2]
[339105018,1727250387683,-427324.7288116,0.00015998,2]
[339105019,1727250387707,-505.33,0.00015998,2]
[339105020,1727250387732,-1000.0,0.00016,16]
[339105021,1727250387758,-153.0,0.00016,2]
[339105022,1727250387782,-153.0,0.00016,2]
[339105023,1727250387807,-209.0432937,0.0001605,2]
[339105024,1727250387831,-150.112233,0.000161,2]
[339105025,1727250387857,-209.0432937,0.00016101,2]
[339105026,1727250387880,-209.0432937,0.00016101,2]
[339105027,1727250387903,-209.0432937,0.00016101,2]
[339105028,1727250387927,-209.0432937,0.00016101,2]
[339105029,1727250387951,-46437.1465361,0.00016119,2]
[339105030,1727250387975,-169.0,0.0001625,2]
[339105031,1727250387999,-150.112233,0.000163,2]
[339105032,1727250388022,-150.112233,0.000163,2]
[339105033,1727250388045,-150.112233,0.000163,2]
[339105034,1727250388069,-153.0,0.00016329,2]
[339105035,1727250388092,-151.0,0.00016329,2]
[339105036,1727250388115,-151.0,0.00016329,2]
[339105037,1727250388139,-151.0,0.00016329,2]
[339105038,1727250388167,-151.0,0.00016329,2]
[339105039,1727250388190,-151.0,0.00016329,2]
[339105040,1727250388214,-206.374461,0.00016329,2]
[339105041,1727250388238,-328.339332,0.00016329,2]
[339105042,1727250388264,-328.339332,0.00016329,2]
[339105043,1727250388288,-151.0,0.00016329,2]
[339105044,1727250388312,-151.0,0.00016329,2]
[339105045,1727250388337,-151.0,0.00016329,2]
[339105046,1727250388362,-436.94985077,0.00016338,2]
[339105047,1727250388385,-1000.0,0.00016341,2]
[339105048,1727250388409,-1000.0,0.00016382,2]
[339105049,1727250388434,-1000.0,0.00016399,2]
[339105050,1727250388458,-150.112233,0.000164,2]
[339105051,1727250388484,-150.112233,0.000164,2]
[339105052,1727250388509,-150.112233,0.000164,2]
[339105053,1727250388533,-150.112233,0.000164,2]
[339105054,1727250388557,-150.112233,0.000164,2]
[339105055,1727250388582,-150.112233,0.000164,2]
[339105056,1727250388606,-150.112233,0.000164,2]
[339105057,1727250388636,-150.112234,0.000164,2]
[339105058,1727250388662,-151.0,0.00016418,2]
[339105059,1727250388687,-151.0,0.00016419,2]
[339105060,1727250388711,-268.64208,0.00016419,2]
[339105061,1727250388735,-151.0,0.00016419,2]
[339105062,1727250388759,-160.0,0.00016437,2]
[339105063,1727250388953,-160.0,0.00016437,2]
[339105064,1727250388977,-151.0,0.00016438,2]
[339105065,1727250389002,-151.0,0.00016438,2]
[339105066,1727250389029,-500.0,0.00016438,2]
[339105067,1727250389053,-502.08425074,0.00016438,2]
[339105068,1727250389076,-151.0,0.00016438,2]
[339105069,1727250389115,-500.0,0.00016438,2]
[339105070,1727250389140,-500.0,0.00016438,2]
[339105071,1727250389164,-500.0,0.00016438,2]
[339105072,1727250389189,-501.56298995,0.00016438,2]
[339105073,1727250389212,-151.0,0.00016438,2]
[339105074,1727250389237,-151.0,0.00016438,2]
[339105075,1727250389264,-151.0,0.00016438,2]
[339105076,1727250389288,-627.86,0.00016438,2]
[339105077,1727250389313,-643.84,0.00016438,2]
[339105078,1727250389337,-500.0,0.00016438,2]
[339105079,1727250389361,-500.0,0.00016438,2]
[339105080,1727250389385,-500.0,0.00016438,2]
[339105081,1727250389409,-500.0,0.00016438,2]
[339105082,1727250389433,-570.6,0.00016438,2]
[339105083,1727250389456,-504.33901682,0.00016438,2]
[339105084,1727250389480,-151.0,0.00016438,2]
[339105085,1727250389505,-151.0,0.00016438,2]
[339105086,1727250389528,-901.21,0.00016438,2]
[339105087,1727250389551,-500.0,0.00016438,2]
[339105088,1727250389575,-901.85,0.00016438,2]
[339105089,1727250389599,-500.0,0.00016438,2]
[339105090,1727250389626,-284.31874292,0.00016438,2]
[339105091,1727250389651,-500.0,0.00016438,2]
[339105092,1727250389675,-963.24,0.00016438,2]
[339105093,1727250389700,-500.0,0.00016438,2]
[339105094,1727250389723,-500.0,0.00016438,2]
[339105095,1727250389746,-500.0,0.00016438,2]
[339105096,1727250389771,-500.0,0.00016438,2]
[339105097,1727250389794,-843.2,0.00016438,2]
[339105098,1727250389818,-831.16,0.00016438,2]
[339105099,1727250389841,-505.33,0.00016438,2]
[339105100,1727250389865,-500.0,0.00016438,2]
[339105101,1727250389888,-259.49,0.00016438,2]
[339105102,1727250389914,-657.99,0.00016438,2]
[339105103,1727250389940,-532.58,0.00016438,2]
[339105104,1727250389966,-880.84,0.00016438,2]
[339105105,1727250389989,-500.0,0.00016438,2]
[339105106,1727250390015,-151.0,0.00016438,2]
[339105107,1727250390040,-184.834371,0.00016438,2]
[339105108,1727250390064,-500.0,0.00016438,2]
[339105109,1727250390087,-500.0,0.00016438,2]
[339105110,1727250390111,-500.0,0.00016438,2]
[339105111,1727250390136,-500.0,0.00016438,2]
[339105112,1727250390159,-657.44,0.00016438,2]
[339105113,1727250390182,-500.0,0.00016438,2]
[339105114,1727250390207,-500.0,0.00016438,2]
[339105115,1727250390231,-500.0,0.00016438,2]
[339105116,1727250390258,-500.0,0.00016438,2]
[339105117,1727250390282,-500.0,0.00016438,2]
[339105118,1727250390305,-500.0,0.00016438,2]
[339105119,1727250390329,-500.0,0.00016438,2]
[339105120,1727250390353,-500.0,0.00016438,2]
[339105121,1727250390378,-500.0,0.00016438,2]
[339105122,1727250390401,-500.0,0.00016438,2]
[339105123,1727250390425,-500.0,0.00016438,2]
[339105124,1727250390452,-476.21514682,0.00016438,2]
[339105125,1727250390476,-500.0,0.00016438,2]